Cogmind - Beta 10.2 @@@ ROGUE MODE // 2021.09.09 @ 23:40:31 Player: onyhow Result: Destroyed by D-53 Grenadier with Mini Grenade Launcher Performance ------------- Evolutions (0) 0 Regions Visited (2) 400 Robots Destroyed (16) 80 Value Destroyed (307) 307 Prototype IDs (2) 40 Alien Tech Used (0) 0 Bonus (0) 0 TOTAL SCORE: 827 Bonus ------- None Cogmind --------- Core Integrity 0/250 Matter 300/300 Energy 100/100 System Corruption 7% Temperature Cool (0) Movement Core (1100) Ox21 Location -10/Mines Parts ------- > --- POWER (1) -------- (None) > --- PROPULSION (2) --- (None) > --- UTILITY (2) ------ High-capacity Storage Unit High-capacity Storage Unit > --- WEAPON (2) ------- (None) > --- INVENTORY (20) --- Improved Ion Engine Light Nuclear Core Aluminum Leg Heat Sink Heat Sink Large Storage Unit Large Storage Unit High-capacity Storage Unit ECM Suite EM Pulse Gun Beam Rifle Assault Rifle Assault Rifle Light Assault Rifle Grenade Launcher Welding Torch Mining Claw Peak State ------------ > --- POWER ------------ Ion Engine > --- PROPULSION ------- Light Treads Light Treads > --- UTILITY ---------- High-capacity Storage Unit High-capacity Storage Unit > --- WEAPON ----------- Medium Laser Assault Rifle > --- INVENTORY -------- Improved Ion Engine Light Nuclear Core Aluminum Leg Aluminum Leg Heat Sink Large Storage Unit Large Storage Unit High-capacity Storage Unit ECM Suite EM Pulse Gun Beam Rifle Assault Rifle Assault Rifle Light Assault Rifle Grenade Launcher Mining Claw [Rating: 9] Favorites ----------- Power Ion Engine Engine Ion Engine Propulsion Light Treads Treads Light Treads Leg Aluminum Leg Utility High-capacity Storage Unit Storage High-capacity Storage Unit Processor Signal Interpreter Weapon Medium Laser Energy Gun Medium Laser Ballistic Gun Light Assault Rifle Build | -11 -10 -10 ------- Run | Scr Mat Min Slots Evolved . | . . . Power . | . . . Propulsion . | . . . Utility . | . . . Weapon . | . . . Parts Attached 19 | 7 11 1 Power 1 | 1 . . Engine 1 | 1 . . Core . | . . . Reactor . | . . . Propulsion 6 | 2 3 1 Treads 3 | . 3 . Leg 3 | 2 . 1 Wheel . | . . . Hover . | . . . Flight . | . . . Utility 5 | 1 4 . Device . | . . . Storage 4 | 1 3 . Processor 1 | . 1 . Hackware . | . . . Protection . | . . . Artifact . | . . . Weapon 7 | 3 4 . Energy Gun 4 | 2 2 . Energy Cannon . | . . . Ballistic Gun 3 | 1 2 . Ballistic Cannon . | . . . Launcher . | . . . Special Weapon . | . . . Impact Weapon . | . . . Slashing Weapon . | . . . Piercing Weapon . | . . . Special Melee Weapon . | . . . Unidentified Prototypes . | . . . Parts Lost 6 | . . 6 Power 1 | . . 1 Propulsion 3 | . . 3 Utility . | . . . Weapon 2 | . . 2 Highest Loss Streak 6 | . . 6 Average Slot Usage (%) 97 | . 98 97 Engine 13 | . 14 13 Treads 19 | . 17 26 Leg 7 | . 9 . Storage 18 | . 16 28 Processor 8 | . 10 . Energy Gun 12 | . 11 12 Ballistic Gun 15 | . 16 13 Naked Turns . | . . . Heaviest Build 73 | 13 73 73 Greatest Support 40 | 10 40 40 Greatest Overweight (x) 21 | 1 1 21 Average Overweight (x) . | . . 1 Largest Inventory Capacity 20 | 6 20 20 Average Capacity 12 | 5 11 20 Most Carried 18 | 5 13 18 Average Carried 10 | 3 9 17 Final Capacity 20 | 6 20 20 Final Carried 17 | 4 13 17 Class Distribution -------------------- 63% | Mutant 36% | Hauler-Mutant Dominant Class ---------------- Mutant | -10/Materials Hauler-Mutant | -10/Mines Resources | -11 -10 -10 ----------- Run | Scr Mat Min Matter Collected 484 | 276 184 24 Remotely . | . . . Salvage Created 585 | 95 490 . Parts 30 | 1 29 . Haulers Intercepted 1 | . 1 . Recyclers Shooed . | . . . Parts Field Recycled . | . . . Retrieved Matter . | . . . Parts Self-Destructed . | . . . Prevented . | . . . Kills | -11 -10 -10 ------- Run | Scr Mat Min Combat Hostiles Destroyed 12 | . 12 . Guns 12 | . 12 . Classes Destroyed 5 | 1 4 . Hauler 1 | . 1 . Recycler 2 | 1 1 . Watcher 1 | . 1 . Swarmer 6 | . 6 . Grunt 6 | . 6 . Best Kill Streak 4 | 1 4 . Combat Bots Only 3 | . 3 . Max Kills in Single Turn 1 | 1 1 . Gunslinging . | . . . Exploded . | . . . Melee . | . . . Uniques/NPCs Destroyed . | . . . Combat | -11 -10 -10 -------- Run | Scr Mat Min Damage Taken 1129 | . 435 694 Core 253 | . 131 122 Absorbed by Shields . | . . . Core Remaining (%) 100 | 100 . . Volleys Fired 60 | 6 54 . Largest 2 | 2 2 . Hottest 70 | 70 70 . Shots Fired 119 | 12 107 . Gun 119 | 12 107 . Cannon . | . . . Launcher . | . . . Special . | . . . Kinetic 66 | 6 60 . Thermal 53 | 6 47 . Explosive . | . . . Electromagnetic . | . . . Robot Hit Streak 9 | 2 9 . Robot Miss Streak 5 | 2 5 . Penetration Max . | . . . Secondary Targets 2 | . 2 . Max Gunslinging Chain 1 | . 1 . Shots Hit Robots 63 | 6 57 . Core Hits 29 | 2 27 . Critical Hits 1 | . 1 . Critical Kills 1 | . 1 . Critical Parts Destroyed . | . . . Melee Attacks . | . . . Impact . | . . . Slashing . | . . . Piercing . | . . . Sneak Attacks . | . . . Combat Hostiles . | . . . Follow-up Attacks . | . . . Damage Inflicted 634 | 68 566 . Guns 632 | 68 564 . Cannons . | . . . Explosions . | . . . Melee . | . . . Ramming 2 | . 2 . Kinetic 263 | 16 247 . Thermal 369 | 52 317 . Explosive . | . . . Electromagnetic . | . . . Impact . | . . . Slashing . | . . . Piercing . | . . . Highest Corruption 7 | . 7 7 Average Corruption 6 | . 6 7 Corruption Purged . | . . . Effects 27 | . 19 8 Message Errors 5 | . 5 . Matter Fused 4 | . 4 . Heat Flow Errors 5 | . 2 3 Energy Discharges 4 | . 1 3 Data Loss (minor) 2 | . 1 1 Data Loss (major) 3 | . 2 1 Targeting Errors 3 | . 3 . Weapon Failures 1 | . 1 . Overload Shots . | . . . Overflow Damage . | . . . Projectiles . | . . . Explosions . | . . . Melee . | . . . Knockbacks . | . . . Impact . | . . . Kinetic . | . . . Secondary . | . . . Self-Inflicted Damage 1 | . 1 . Shots . | . . . Rammed 1 | . 1 . Targets Rammed 1 | . 1 . Kicked . | . . . Crushed . | . . . Highest Temperature 288 | 80 288 213 Average Temperature 66 | 30 63 103 Received Heat Transfer 78 | . 78 . Siege Activations . | . . . Robots Corrupted . | . . . Combat Hostiles . | . . . Parts Fried . | . . . Impact Corruptions . | . . . Robots Melted . | . . . Combat Hostiles . | . . . Parts Melted 1 | . 1 . Heat Transferred 1073 | 148 925 . Parts Sabotaged . | . . . Parts Stolen . | . . . Parts Stripped . | . . . Power Chain Reactions . | . . . Missiles Intercepted . | . . . Alert | -11 -10 -10 ------- Run | Scr Mat Min Peak Influence 271 | 5 271 37 Initial 37 | . 3 37 Average 116 | . 152 34 Maximum Alert Level 1 | . 1 . Low Security (%) 72 | 100 61 100 Level 1 27 | . 38 . Level 2 . | . . . Level 3 . | . . . Level 4 . | . . . Level 5 . | . . . High Security . | . . . Max Security . | . . . Squads Dispatched 2 | . 2 . Investigation 1 | . 1 . Extermination . | . . . Reinforcement 1 | . 1 . Assault . | . . . Garrison . | . . . Intercept . | . . . Construction Impeded . | . . . Haulers Reinforced . | . . . Stealth | -11 -10 -10 --------- Run | Scr Mat Min Distress Signals . | . . . Communications Jammed . | . . . Distress Signals . | . . . Times Spotted 24 | . 19 5 Peak Tracking Total 6 | . 4 6 Tactical Retreats . | . . . Traps | -11 -10 -10 ------- Run | Scr Mat Min Traps Triggered 4 | . 4 . Indirectly . | . . . Trap Hack Attempts . | . . . Triggered . | . . . Disarmed . | . . . Reprogrammed . | . . . Reused . | . . . Traps Extracted . | . . . Installed . | . . . Triggered . | . . . Machines | -11 -10 -10 ---------- Run | Scr Mat Min Machines Disabled . | . . . Max in Single Turn . | . . . Machines Sabotaged . | . . . Garrisons Compromised . | . . . Overloaded Fab Kills . | . . . Fab Network Shutdowns . | . . . Hacking | -11 -10 -10 --------- Run | Scr Mat Min Machines Accessed 4 | . 4 . Terminals 3 | . 3 . Fabricators . | . . . Repair Stations 1 | . 1 . Recycling Units . | . . . Scanalyzers . | . . . Garrison Access . | . . . Total Hacks 12 | . 12 . Successful 6 | . 6 . Failed 6 | . 6 . Catastrophic 2 | . 2 . Database Lockouts . | . . . Manual 5 | . 5 . Terminals 9 | . 9 . Fabricators . | . . . Repair Stations 3 | . 3 . Recycling Units . | . . . Scanalyzers . | . . . Garrison Access . | . . . Terminal Hacks 4 | . 4 . Prototype ID Bank 1 | . 1 . Branch Access Points 2 | . 2 . Zone Layout 1 | . 1 . Fabricator Hacks . | . . . Repair Station Hacks 2 | . 2 . Scan Component 1 | . 1 . Repair 1 | . 1 . Recycling Unit Hacks . | . . . Scanalyzer . | . . . Garrison Access Hacks . | . . . Unauthorized Hacks . | . . . Terminals . | . . . Fabricators . | . . . Repair Stations . | . . . Recycling Units . | . . . Scanalyzers . | . . . Garrison Access . | . . . Data Cores Recovered . | . . . Used . | . . . Hacking Detections 4 | . 4 . Full Trace Events 1 | . 1 . Feedback Events . | . . . Feedback Blocked . | . . . Robot Schematics Acquired . | . . . Robots Built . | . . . Matter . | . . . Time . | . . . Total Robot Build Rating . | . . . Part Schematics Acquired . | . . . Parts Built . | . . . Matter . | . . . Time . | . . . Total Part Build Rating . | . . . Parts Repaired 1 | . 1 . Time 26 | . 26 . Parts Recycled . | . . . Recycled Matter . | . . . Retrieved Matter . | . . . Retrieved Components . | . . . Parts Scanalyzed . | . . . Part Schematics Acquired . | . . . Parts Damaged . | . . . Bothacking | -11 -10 -10 ------------ Run | Scr Mat Min Used RIF Installer . | . . . Robots Hacked . | . . . Non-combat . | . . . Combat . | . . . Robot Hacks Applied . | . . . Relay Couplers Released . | . . . Robots Rewired . | . . . Allies Hacked . | . . . Hacks Repelled . | . . . Allies | -11 -10 -10 -------- Run | Scr Mat Min Total Allies . | . . . Largest Group . | . . . Highest-Rated Group . | . . . Highest-Rated Ally . | . . . Total Orders . | . . . Ally Attacks . | . . . Total Damage . | . . . Kills . | . . . Allies Corrupted . | . . . Allies Melted . | . . . Intel | -11 -10 -10 ------- Run | Scr Mat Min Robot Analysis Total . | . . . Derelict Logs Recovered 1 | . . 1 Drone Launches . | . . . Drone Recoveries . | . . . Exploration | -11 -10 -10 ------------- Run | Scr Mat Min Turns Passed 1228 | 84 882 262 Spaces Moved 589 | 39 415 135 Core 9 | 8 . 1 Treads 390 | . 259 131 Legs 190 | 31 156 3 Wheels . | . . . Hover . | . . . Flight . | . . . Fastest Speed 50 | 50 120 180 Average Speed 162 | 129 156 189 Slowest Speed 1100 | 150 180 1100 Overloaded Moves . | . . . Propulsion Burnouts . | . . . Robots Hopped . | . . . Cave-ins Triggered . | . . . Exploration Rate (%) 34 | 3 68 31 Regions Visited 2 Branch Regions 1 Pre-discovered Areas 1 | . . 1 Known Exits Taken 1 | . 1 . Unknown Exits Taken 1 | 1 . . Scrap Searched 1 | . . 1 Spaces Dug . | . . . Terrain Destroyed . | . . . Melee . | . . . Projectile . | . . . AOE . | . . . Terrain Rammed . | . . . Walls Destroyed . | . . . Machines Disabled . | . . . Actions | -11 -10 -10 --------- Run | Scr Mat Min Total 757 | 61 550 146 Wait 48 | . 43 5 Move 587 | 38 414 135 Hop . | . . . Pick Up 34 | 10 19 5 Fast Attach . | . . . Attach 10 | 6 3 1 Detach . | . . . Swap 9 | 1 8 . Drop 8 | . 8 . Fire 60 | 6 54 . Melee . | . . . Ram . | . . . Kick 1 | . 1 . Crush . | . . . Escape Stasis . | . . . Rewire . | . . . Trap . | . . . Miscellaneous . | . . . Route ------- -11/Scrapyard -10/Materials (discovered 4 exits: [*Mat x2] / *Min x2) -10/Mines (discovered 1 exit: [*Mat]) History --------- Turn | Location | Event 6 | -11/Scrapyard | Discovered new exit (range 16) 85 | -11/Scrapyard | Entered Materials 305 | -10/Materials | Discovered new exit (range 15) 315 | -10/Materials | Build established: Mutant 391 | -10/Materials | Identified exit to Mines 637 | -10/Materials | Core integrity fell below 50% 779 | -10/Materials | Repaired Lgt. Treads 897 | -10/Materials | Discovered new exit (range 3) 967 | -10/Materials | Entered Mines 980 | -10/Mines | Learned Materials security intel 984 | -10/Mines | Joined a pair of Derelicts in attacking an 0b10 outpost 1078 | -10/Mines | Build established: Hauler-Mutant 1095 | -10/Mines | Learned location of Storage (-9) 1175 | -10/Mines | Assembled infested the area 1206 | -10/Mines | Discovered new exit (range 12) 1221 | -10/Mines | Core integrity fell below 20% 1229 | -10/Mines | Destroyed by D-53 Grenadier with Mini Grenade Launcher Last Messages --------------- 01214_ The unstable cave ceiling collapses. 01214_ K-01 Serf collects debris. 01215_ Lgt. Treads destroyed. 01215_ K-01 Serf collects debris. 01217_ Assault Rifle destroyed. 01218_ The unstable cave ceiling collapses. 01218_ K-01 Serf collects debris. 01221_ The unstable cave ceiling collapses. 01221_ K-01 Serf collects debris. 01222_ Aluminum Leg destroyed. 01222_ K-01 Serf collects debris. 01223_ The unstable cave ceiling collapses. 01224_ as-15052 destroyed. 01224_ as-11096 destroyed. 01225_ K-01 Serf collects debris. 01226_ The unstable cave ceiling collapses. 01226_ K-01 Serf collects debris. 01227_ The unstable cave ceiling collapses. 01227_ K-01 Serf collects debris. 01228_ The unstable cave ceiling collapses. Map ----- +----------------------------------------------------+ | ?????????????????????????????????????????????????? | | ?????????????????????????????????????????????????? | | ?????????????????????????????????????????????????? | | ?????????????????????????????????????????????????? | | ?????????????????????????????????????????????????? | | ?????????????????????????????????????????????????? | | ?????????????????????????????????????????????????? | | ?????????????????????????????????????????????????? | | ?????????????????????????????????????????????????? | | ?????????????????????????????????????????????????? | | ?????????????????????????????????????????????????? | | ?????????????????????????????????????????????????? | | ?????????????????????????????????????????????????? | | ????????????????????????????????????????########## | | ????????????????????????????????????? | | ????????????????????????????????????? | | ??????????????????????????##????????????????###### | | ?????????????????????????? ???????????????????##" | | ?????????????????????????? ???????????????????#"" | | ?????????????????????????? #???????????????????#!! | | ????????????????????????## #???????????????????#! | | ?????????????# ????????## ##???????####???????#"" | | ????????????# ?????### < #???##### ##??????##" | | ????????????# ???## ##### #####???## | | ?????????????# ??# # ## ##???? | | ??????????#### ?# @ ### #???? | | ?????????? ### # ## #???? | | ?????????? # # ## #???? | | ?????????????## # #### ##???? | | ??????????????# # ##??#### #????? | | ?????????????# ### ## #???????# ###??? | | ????????????# k????# #????????# #??? | | ???????????? ??????# # # #????????### #??? | | ???????????????????# ##??????????# #??? | | ???????????????????## d #??????????# #??? | | ????????????????????# d ######?????# #??? | | ????????????????????## ## ####### #### | | ?????????????????????## | | ??????????????????????# ##### ku "%" | | ??????????????????????# #???## " ##### | | ???????????????????????# #????## ##???# | | ??????????????????????? ?????#########????## | | ???????????????????????###???????????????????## | | ??????????????????????????????????????????????# | | ??????????????????????????????????????????????# | | ??????????????????????????????????????????????## | | ???????????????????????????????????????????????### | | ?????????????????????????????????????????????????? | | ?????????????????????????????????????????????????? | | ?????????????????????????????????????????????????? | +----------------------------------------------------+ Best States ------------- Heat Dissipation 25 Energy Generation 10 Energy Capacity 250 Matter Stores 300 Matter Capacity 300 Sight Range 16 Terrain Scan Density 10 Evasion (%) 50 Recoil Reduction 2 Item Schematics ----------------- None Robot Schematics ------------------ None Fabricated ------------ Nothing Alien Tech Used ----------------- None Achievements -------------- None Challenges ------------ None Game ------ Seed LayeredLinkedManipulator Manual? 0 Play Time 00:13:57 Cumulative 85.4 hours Start 2021.05.22 @ 21:21:34 End 2021.09.09 @ 23:40:31 Sessions 7 Manual Loads 0 Difficulty Rogue Special Mode None Game No. 60 Rogue 60 Adventurer 0 Explorer 0 Win Type - Total 0 Types 0/0/0/0/0/0/0/0/0 Lore% 25 Gallery% 45 Achievement% 31 Wizard Run 0 Options --------- ASCII 0 Keyboard 0 Movement Mouse Keybinds 0 Fullscreen 2 Font 18/SmallcapsGlow Map View 76x50 Tactical HUD 1 Map Filters NONE Filters NONE Steam 1 RUN: f3265204-2be3-4262-8da9-e641e4bfc1e3